Workbook

Sheet Sheet1
A1: Bidders must provide the NHLS with costing information for a 5 years’ contract duration. The bid price quoted must be inclusive as per the scope of work.
A2: Note:
A3: a)Bidder must complete the pricing as per tables below.
A4: b)Prices must be provided in South African Rand.
A5: c)Line Prices are all VAT EXCLUDING, and TOTAL PRICE is VAT INCLUSIVE.
A6: d)Bidder to ensure that the Prices listed below are included on the Total Declared Price.
A7: e)Bidders who fail to price according to the costing template provided will be disqualified.
A9: ANNEXURE B1
A11: Category | B11: Item and description | C11: Quantity Year 1 | D11: Annual Cost Year 1 (VAT Excl.) | E11: Quantity Year 2 | F11: Annual Cost Year 2 (VAT Excl.) | G11: Quantity Year 3 | H11: Annual Cost Year 3 (VAT Excl.) | I11: Quantity Year 4 | J11: Annual Cost Year 4 (VAT Excl.) | K11: Quantity Year 5 | L11: Annual Cost Year 5 (VAT Excl.) | M11: Total Cost for 5 Years (VAT Excl.)
A12: Adaptor | B12: LUER ADAPTOR 20G (STERILE, SINGLE-USE MALE LUER ADAPTER FOR BLOOD COLLECTION) | C12: 153,725 | E12: =C12*1.05 -> 161,411 | G12: =E12*1.05 -> 169,482 | I12: =G12*1.05 -> 177,956 | K12: =I12*1.05 -> 186,854
A13: Butterfly | B13: 21G SAFETY BUTTERFLY BLOOD COLLECTION SET WITH LUER ADAPTOR (STERILE, SINGLE-USE. SAFETY SHIELD FOR NEEDLE. NO LATEX. TUBING 18-30 CM.) | C13: 142,975 | E13: 150,124 | G13: =E13*1.05 -> 157,630 | I13: 165,511 | K13: =I13*1.05 -> 173,787
B14: 23G SAFETY BUTTERFLY BLOOD COLLECTION SET WITH LUER ADAPTOR (STERILE, SINGLE-USE. SAFETY SHIELD FOR NEEDLE. NO LATEX. TUBING 18-30 CM.) | C14: 156,950 | E14: 164,798 | G14: 173,037 | I14: 181,689 | K14: =I14*1.05 -> 190,774
B15: 25G SAFETY BUTTERFLY BLOOD COLLECTION SET WITH LUER ADAPTOR (STERILE, SINGLE-USE. SAFETY SHIELD FOR NEEDLE. NO LATEX. TUBING 18-30 CM.) | C15: 7,525 | E15: 7,901 | G15: 8,296 | I15: 8,711 | K15: =I15*1.05 -> 9,147
A16: Holder | B16: BLOOD COLLECTION TUBE HOLDER | C16: 11,846,500 | E16: 12,438,825 | G16: 13,060,766 | I16: 13,713,805 | K16: =I16*1.05 -> 14,399,495
A17: Lancet | B17: 21-23G LANCET FOR FINGERTIP OR HEEL BLOOD COLLECTION | C17: 16,125 | E17: 16,931 | G17: 17,778 | I17: 18,667 | K17: =I17*1.05 -> 19,600
B18: 28-30G LANCET FOR FINGERTIP OR HEEL BLOOD COLLECTION | C18: 16,125 | E18: 16,931 | G18: 17,778 | I18: 18,667 | K18: =I18*1.05 -> 19,600
B19: 1.4-1.6mm BLADE LANCET FOR FINGERTIP OR HEEL BLOOD COLLECTION | C19: 16,125 | E19: 16,931 | G19: 17,778 | I19: 18,667 | K19: =I19*1.05 -> 19,600
A20: Needle | B20: 21G SAFETY NEEDLE FOR VACUUM BLOOD COLLECTION TUBE (SAFETY SHIELD OR NEEDLE RETRACTION) | C20: 9,756,700 | E20: 10,244,535 | G20: 10,756,762 | I20: 11,294,600 | K20: =I20*1.05 -> 11,859,330
B21: 22G SAFETY NEEDLE FOR VACUUM BLOOD COLLECTION TUBE (SAFETY SHIELD OR NEEDLE RETRACTION) | C21: 2,090,875 | E21: 2,195,419 | G21: 2,305,190 | I21: 2,420,449 | K21: =I21*1.05 -> 2,541,472
A22: Paed tube | B22: PAEDIATRIC BLOOD COLLECTION TUBE, FLUORIDE/OXALATE, FOR GLUCOSE (NOT EDTA CONTAINING) | C22: 53,750 | E22: 56,438 | G22: 59,259 | I22: 62,222 | K22: =I22*1.05 -> 65,333
B23: PAEDIATRIC BLOOD COLLECTION TUBE, K2EDTA | C23: 1,374,925 | E23: 1,443,671 | G23: 1,515,855 | I23: 1,591,648 | K23: =I23*1.05 -> 1,671,230
B24: PAEDIATRIC BLOOD COLLECTION TUBE, LITHIUM HEPARIN | C24: 39,775 | E24: 41,764 | G24: 43,852 | I24: 46,045 | K24: =I24*1.05 -> 48,347
B25: PAEDIATRIC BLOOD COLLECTION TUBE, LITHIUM HEPARIN, WITH GEL SEPARATOR | C25: 83,850 | E25: 88,043 | G25: 92,445 | I25: 97,067 | K25: =I25*1.05 -> 101,920
B26: PAEDIATRIC BLOOD COLLECTION TUBE, SERUM, NO GEL SEPARATOR | C26: 3,225 | E26: 3,386 | G26: 3,556 | I26: 3,733 | K26: =I26*1.05 -> 3,920
B27: PAEDIATRIC BLOOD COLLECTION TUBE, SERUM, WITH GEL SEPARATOR | C27: 1,772,675 | E27: 1,861,309 | G27: 1,954,374 | I27: 2,052,093 | K27: =I27*1.05 -> 2,154,698
B28: PAEDIATRIC BLOOD COLLECTION TUBE, SODIUM CITRATE 3.2% | C28: 564,375 | E28: 592,594 | G28: 622,223 | I28: 653,335 | K28: =I28*1.05 -> 686,001
A29: Syringe | B29: ARTERIAL BLOOD COLLECTION SYRINGE, DRY HEPARIN, LUER SLIP TIP, 1ML (NO NEEDLE) | C29: 38,700 | E29: 40,635 | G29: 42,667 | I29: 44,800 | K29: =I29*1.05 -> 47,040
B30: ARTERIAL BLOOD COLLECTION SYRINGE, DRY HEPARIN, LUER SLIP TIP, 3ML (NO NEEDLE) | C30: 93,525 | E30: 98,201 | G30: 103,111 | I30: 108,267 | K30: =I30*1.05 -> 113,680
A31: Tourniquet | B31: TOURNIQUET WITH CLIP (MULTIPLE USE. DURABLE. CLIP MUST HOLD SECURELY, AND RELEASE EASILY. LATEX-FREE.) | C31: 60,200 | E31: 63,210 | G31: 66,371 | I31: 69,689 | K31: =I31*1.05 -> 73,173
A32: Tube | B32: VACUUM TUBE, ACD-A, 9ML | C32: 7,525 | E32: 7,901 | G32: 8,296 | I32: 8,711 | K32: =I32*1.05 -> 9,147
B33: VACUUM TUBE, ACD-B, 6ML | C33: 12,900 | E33: 13,545 | G33: 14,222 | I33: 14,933 | K33: =I33*1.05 -> 15,680
B34: VACUUM TUBE, FLUORIDE/OXALATE, FOR GLUCOSE, 4ML (NOT EDTA CONTAINING) | C34: 1,170,675 | E34: 1,229,209 | G34: 1,290,669 | I34: 1,355,203 | K34: =I34*1.05 -> 1,422,963
B35: VACUUM TUBE, K2EDTA, 2ML | C35: 52,675 | E35: 55,309 | G35: 58,074 | I35: 60,978 | K35: =I35*1.05 -> 64,027
B36: VACUUM TUBE, K2EDTA, 4ML | C36: 15,340,250 | E36: 16,107,263 | G36: 16,912,626 | I36: 17,758,257 | K36: =I36*1.05 -> 18,646,170
B37: VACUUM TUBE, LITHIUM HEPARIN, 4ML | C37: 516,000 | E37: 541,800 | G37: 568,890 | I37: 597,335 | K37: =I37*1.05 -> 627,201
B38: VACUUM TUBE, LITHIUM HEPARIN, 6ML | C38: 33,325 | E38: 34,991 | G38: 36,741 | I38: 38,578 | K38: =I38*1.05 -> 40,507
B39: VACUUM TUBE, NO ADDITIVE, 4ML | C39: 1,354,500 | E39: 1,422,225 | G39: 1,493,336 | I39: 1,568,003 | K39: =I39*1.05 -> 1,646,403
B40: VACUUM TUBE, PLASMA K2EDTA, WITH GEL SEPARATOR, 5ML (FOR MOLECULAR USE) | C40: 7,511,025 | E40: 7,886,576 | G40: 8,280,905 | I40: 8,694,950 | K40: =I40*1.05 -> 9,129,698
B41: VACUUM TUBE, SERUM WITH CLOT ACTIVATOR AND GEL SEPARATOR, 2-4 ML | C41: 2,714,375 | E41: 2,850,094 | G41: 2,992,598 | I41: 3,142,228 | K41: =I41*1.05 -> 3,299,340
B42: VACUUM TUBE, SERUM WITH CLOT ACTIVATOR AND GEL SEPARATOR, 5 ML | C42: 19,916,525 | E42: 20,912,351 | G42: 21,957,969 | I42: 23,055,867 | K42: =I42*1.05 -> 24,208,661
B43: VACUUM TUBE, SERUM WITH CLOT ACTIVATOR, NO GEL SEPARATOR, 4-6 ML | C43: 505,250 | E43: 530,513 | G43: 557,038 | I43: 584,890 | K43: =I43*1.05 -> 614,135
B44: VACUUM TUBE, SODIUM CITRATE 3.2%, 4.5ML | C44: 1,470,600 | E44: 1,544,130 | G44: 1,621,337 | I44: 1,702,403 | K44: =I44*1.05 -> 1,787,523
B45: VACUUM TUBE, SODIUM CITRATE, FOR ESR, 2ML | C45: 420,325 | E45: 441,341 | G45: 463,408 | I45: 486,579 | K45: =I45*1.05 -> 510,908
B46: VACUUM TUBE, TRACE METAL-FREE, WITH ANTICOAGULANT, 6ML | C46: 1,075 | E46: 1,129 | G46: 1,185 | I46: 1,244 | K46: =I46*1.05 -> 1,307
B47: VACUUM TUBE, TRACE METAL-FREE, WITH CLOT ACTIVATOR, 6ML | C47: 1,075 | E47: 1,129 | G47: 1,185 | I47: 1,244 | K47: =I47*1.05 -> 1,307
A48: Subtotal (VAT Excl.)
A49: VAT (15%)
A50: Total Price (VAT Incl.)

Sheet Sheet2

Sheet Sheet3
